bitfinex/quotes_ETHUSD_20220226
["timestamp","ask_amount","ask_price","bid_price","bid_amount"]
[1645860926468,0.90112,2776.2,2775.8,0.28440616]
[1645860926667,12.14343821,2776.1,2775.8,0.30620076]
[1645860926905,0.90112,2776.2,2775.8,0.01854332]
[1645860927506,0.90112,2776.2,2775.6,0.00325128]
[1645860927707,0.90112,2776.2,2775.9,0.00463543]
[1645860927910,0.90113,2776.1,2775.9,0.00463543]
[1645860928111,1.80234,2776.5,2775.9,0.00463543]
[1645860928112,0.47545861,2776.6,2776.0,0.2835268]
[1645860928808,0.47545861,2776.6,2776.2,0.3596]
[1645860929111,0.0163096,2777.7,2776.2,0.3596]
[1645860929112,0.144,2777.6,2776.5,0.3596]
[1645860929307,1.20288289,2777.5,2776.6,3.9274268]
[1645860929507,1.20288289,2777.4,2776.7,0.00325128]
[1645860929708,1.20288289,2777.3,2776.7,0.36285128]
[1645860929908,0.90056,2777.7,2776.8,0.00325128]
[1645860930109,1.20290981,2777.6,2776.7,0.3596]
[1645860930312,0.90061,2777.5,2776.9,0.00463465]
[1645860930558,1.20290981,2777.4,2776.9,0.00463465]
[1645860930762,2.10355981,2777.4,2776.9,0.00463465]
[1645860930956,0.90065,2777.4,2776.9,0.00463465]
[1645860931161,0.90065,2777.4,2776.6,0.00325128]
[1645860931357,0.90065,2777.4,2777.0,0.00464914]
[1645860932361,0.90065,2777.4,2776.9,1.07898872]
[1645860932562,0.90065,2777.4,2777.1,0.0046491]
[1645860933367,4.50065,2777.4,2777.1,0.0046491]
[1645860933564,4.50065,2777.4,2776.7,0.00325128]
[1645860933864,4.50065,2777.4,2777.1,0.00464907]
[1645860934063,4.52102792,2777.4,2777.1,0.00464907]
[1645860934804,4.52102792,2777.4,2777.0,1.39965922]
[1645860935004,4.52102792,2777.4,2777.1,0.00464804]
[1645860935605,1.20437538,2777.3,2777.1,0.00464804]
[1645860935907,4.52102792,2777.4,2777.0,1.39965922]
[1645860936104,4.36119216,2777.4,2777.1,0.00464804]
[1645860936304,1.20434034,2777.3,2777.1,0.00464804]
[1645860936904,4.36119216,2777.4,2777.1,0.00464804]
[1645860937209,3.6,2777.4,2777.0,1.39965922]
[1645860937404,3.6,2777.4,2777.1,0.00464808]
[1645860938261,3.6,2777.4,2777.0,1.39965922]
[1645860938659,3.6,2777.4,2777.1,0.00464811]
[1645860939462,3.6,2777.4,2777.0,1.39965922]
[1645860939661,0.0162987,2777.3,2777.0,1.39965922]
[1645860939861,0.0162987,2777.3,2777.1,0.00464811]
[1645860940661,0.0162987,2777.3,2777.0,1.39965922]
[1645860940861,0.0162987,2777.3,2777.1,3.79693917]
[1645860941067,0.0162987,2777.3,2777.1,3.50464815]
[1645860941262,0.0162987,2777.3,2777.2,0.29224418]
[1645860943313,0.0162987,2777.3,2777.0,1.54355922]
[1645860943314,0.0162987,2777.3,2777.1,0.29689228]
[1645860943515,0.0162987,2777.3,2777.2,0.29224418]
[1645860944126,3.6,2777.4,2777.2,0.29224418]
[1645860944520,3.6,2777.4,2777.0,1.54355922]
[1645860944521,3.6,2777.4,2777.3,0.29224418]
[1645860944915,3.6,2777.4,2777.2,0.29224418]
[1645860945115,3.6,2777.4,2777.3,0.29224418]
[1645860945318,2.20540057,2777.4,2777.2,0.29224418]
[1645860945562,2.20540057,2777.4,2777.0,1.4029105]
[1645860945764,2.20540057,2777.4,2777.2,0.00464802]
[1645860945964,2.20540057,2777.4,2777.3,0.26641683]
[1645860951717,2.20540057,2777.4,2777.2,0.00464802]
[1645860951918,2.20540057,2777.4,2777.3,0.26641683]
[1645860952721,2.20540057,2777.4,2777.3,7.46751683]
[1645860958512,3.43948419,2777.4,2777.3,7.2011]
[1645860959913,3.39263754,2777.4,2777.3,7.2011]
[1645860960117,3.53653754,2777.4,2777.3,7.2011]
[1645860961370,4.53653754,2777.4,2777.3,7.2011]
[1645860963174,3.53653754,2777.4,2777.3,7.2011]
[1645860963375,3.39263754,2777.4,2777.3,7.2011]
[1645860963776,4.39263754,2777.4,2777.3,7.2011]
[1645860965613,4.39263754,2777.4,2777.3,5.5776539]
[1645860966417,4.53653754,2777.4,2777.3,5.5776539]
[1645860966624,4.39263754,2777.4,2777.3,5.5776539]
[1645860970169,5.06648327,2777.4,2777.3,5.5776539]
[1645860970569,16.00648327,2777.4,2777.3,5.5776539]
[1645860970769,16.30648327,2777.4,2777.3,2.47132207]
[1645860970968,0.90096,2776.9,2776.8,0.01981474]
[1645860971167,13.07504362,2776.9,2776.8,0.01981474]
[1645860971567,14.07504362,2776.9,2776.8,0.01981474]
[1645860972011,14.07504362,2776.9,2776.3,0.00325128]
[1645860972212,0.90094,2776.7,2776.3,0.01981645]
[1645860972419,1.23408362,2776.6,2776.4,0.29682623]
[1645860972615,0.90094,2776.7,2776.4,0.29682623]
[1645860972815,1.20698827,2776.6,2776.4,0.29682623]
[1645860973418,1.20698827,2776.6,2776.5,0.29682623]
[1645860973818,1.20698827,2776.6,2776.4,0.00495367]
[1645860974419,1.20698827,2776.6,2776.0,0.00325128]
[1645860974619,1.20698827,2776.6,2775.9,0.29670493]
[1645860974820,2.10792827,2776.6,2776.0,0.29670493]
[1645860975024,1.20698827,2776.5,2776.1,0.29670493]
[1645860975224,1.20698827,2776.5,2776.2,0.29670493]
[1645860975420,1.20698827,2776.5,2776.3,0.29670493]
[1645860975656,1.20698827,2776.5,2776.4,0.29670493]
[1645860975856,1.20698827,2776.5,2775.8,0.29995621]
[1645860977055,1.20698827,2776.5,2776.0,0.00495038]
[1645860977257,1.20698827,2776.5,2776.1,0.29670493]
[1645860977757,3.1692,2776.8,2776.1,0.29670493]
[1645860977960,1.20697006,2776.7,2776.1,0.29670493]
[1645860978161,1.20697006,2776.7,2776.2,0.29670493]
[1645860978361,1.20697006,2776.6,2776.3,0.29670493]
[1645860978561,1.20697006,2776.5,2776.3,0.29670493]
[1645860978764,0.1439,2776.9,2776.3,0.29670493]
[1645860978960,1.20681501,2776.8,2776.3,0.29670493]
[1645860979407,1.20681501,2776.8,2776.5,0.00494999]
[1645860980310,1.20681501,2776.8,2775.8,0.00325128]
[1645860980511,1.20681501,2776.8,2776.5,0.00494995]
[1645860980711,1.04473,2777.0,2776.5,0.00494995]
[1645860980712,1.20681501,2776.7,2776.5,0.00494995]
[1645860980912,1.20681501,2776.6,2776.5,0.00494995]
[1645860981312,1.20681501,2776.9,2776.5,0.00494995]
[1645860981512,1.20681501,2776.9,2775.8,0.00325128]
[1645860981711,1.20681501,2776.9,2776.4,0.00495004]
[1645860982512,2.10766501,2776.9,2776.4,0.00495004]
[1645860982715,1.20681501,2776.8,2775.8,0.00325128]
[1645860982914,1.20681501,2776.8,2776.5,0.00494995]
[1645860983969,1.20681501,2776.8,2775.8,0.00325128]
[1645860984172,1.24734863,2776.8,2776.5,0.00494995]
[1645860984368,1.20681501,2776.7,2776.5,0.00494995]
[1645860985170,1.20681501,2776.7,2776.1,0.01980277]
[1645860985171,1.20681501,2776.7,2775.8,0.00325128]
[1645860985373,1.20681501,2776.7,2776.5,0.00494999]
[1645860986370,1.20681501,2776.7,2775.8,0.00325128]
[1645860986573,1.20681501,2776.7,2776.5,0.00494999]
[1645860987512,0.00301554,2776.3,2775.8,0.00325128]
[1645860987713,0.00301554,2776.3,2775.8,0.29549697]
[1645860987914,0.00301554,2776.3,2776.0,0.01980294]
[1645860988119,0.00301554,2776.3,2776.1,0.29549697]
[1645860988918,0.00301554,2776.3,2776.2,0.29549697]
[1645860989316,0.00301554,2776.3,2775.8,0.29874825]
[1645860989518,0.00301554,2776.3,2775.9,0.29549697]
[1645860989716,0.00301554,2776.3,2776.0,0.29549697]
[1645860989917,0.00301554,2776.3,2776.1,0.29549697]
[1645860990119,0.00301554,2776.3,2776.2,0.29549697]
[1645860990319,0.00301554,2776.3,2775.8,0.29874825]
[1645860990567,0.00301554,2776.3,2775.9,0.29549697]
[1645860990763,0.00301554,2776.3,2776.0,0.29549697]
[1645860990963,0.00301554,2776.3,2776.1,0.29549697]
[1645860991165,0.00301554,2776.3,2776.2,0.29549697]
[1645860991563,0.00301554,2776.3,2775.9,0.29549697]
[1645860991766,0.00301554,2776.3,2776.0,0.29549697]
[1645860991967,0.00301554,2776.3,2776.1,0.29549697]
[1645860992167,0.00301554,2776.3,2776.2,0.29549697]
[1645860992365,0.00301554,2776.3,2775.8,0.29874825]
[1645860992565,0.00301554,2776.3,2775.9,0.29549697]
[1645860992768,0.00301554,2776.3,2776.1,0.00494674]
[1645860992966,0.00301554,2776.3,2776.2,0.29549697]
[1645860993780,0.04441245,2776.3,2776.1,0.0049467]
[1645860993981,0.04441245,2776.3,2776.2,0.29549697]
[1645860997128,1.25486209,2776.3,2776.2,0.29549697]
[1645860998967,0.04441245,2776.3,2776.2,0.29549697]
[1645860999169,1.25487567,2776.3,2776.2,0.29549697]
[1645860999369,1.25589964,2776.3,2776.2,0.29549697]
[1645861007875,1.25786098,2776.3,2776.2,0.29549697]
[1645861008075,1.25803489,2776.3,2776.2,0.29549697]
[1645861008279,1.17524107,2776.8,2776.3,4.5]
[1645861008480,1.21384287,2776.7,2776.4,4.31449697]
[1645861008680,1.17524107,2776.8,2776.5,1.33720331]
[1645861008884,0.27065317,2776.8,2776.6,0.81449697]
[1645861009080,0.27065317,2776.8,2776.7,0.29549697]
[1645861009912,1.48564037,2776.8,2776.7,0.29549697]
[1645861010516,0.27065317,2776.8,2776.7,0.29549697]
[1645861010918,0.67485655,2777.7,2776.8,7.0]
[1645861011121,0.04176675,2777.8,2777.0,5.3596]
[1645861011318,0.04176675,2777.8,2777.1,4.76412697]
[1645861011319,1.2137545,2777.7,2777.1,4.76412697]
[1645861011524,1.2137545,2777.7,2777.2,0.29549697]
[1645861011717,1.2137545,2777.7,2777.3,0.519]
[1645861011918,1.2137545,2777.7,2777.4,0.29549697]
[1645861012118,1.2137545,2777.7,2777.5,1.04878111]
[1645861012318,1.2137545,2777.7,2777.6,0.29549697]
[1645861013666,0.04176675,2777.8,2777.6,0.29549697]
[1645861014468,1.21265718,2777.7,2777.6,0.29549697]
[1645861014671,1.21265718,2777.7,2777.6,0.82401928]
[1645861015071,0.04176675,2777.8,2777.6,0.82401928]
[1645861015273,0.04176675,2777.8,2777.6,0.52852231]
[1645861015470,7.53819997,2778.3,2777.6,0.52852231]
[1645861015671,1.21603872,2778.2,2777.7,0.2925715]
[1645861015870,1.21141642,2778.1,2777.7,0.2925715]
[1645861016069,1.21141642,2778.1,2777.6,0.52852231]
[1645861016671,1.21141642,2778.0,2777.6,0.52852231]
[1645861016924,1.21141642,2778.0,2777.7,4.31155068]
[1645861017125,3.6,2778.1,2777.8,0.29255068]
[1645861017324,3.6,2778.1,2777.8,0.81155068]
[1645861017522,3.6,2778.1,2777.8,0.519]
[1645861019126,3.6,2778.1,2777.9,0.03875536]
[1645861020427,1.20886132,2778.0,2777.9,0.03875536]
[1645861026424,1.20886132,2778.0,2777.1,3.40035536]
[1645861026625,1.20886132,2778.0,2777.2,0.29158501]
[1645861026827,1.20886132,2778.0,2777.1,3.40035536]
[1645861027228,1.20886132,2778.0,2777.2,0.29153498]
[1645861027827,1.20886132,2778.0,2777.1,3.40035536]
[1645861028464,1.20886132,2778.0,2777.2,0.29153705]
[1645861029265,1.20886132,2778.0,2777.9,0.03875536]
[1645861029466,0.02375786,2777.5,2777.1,3.40035536]
[1645861029669,0.02375786,2777.5,2777.2,0.29226257]
[1645861029866,0.02375786,2777.5,2777.1,3.40035536]
[1645861034322,0.04904644,2777.5,2777.1,3.40035536]
[1645861035022,0.04904644,2777.5,2777.1,4.56984977]
[1645861037778,0.04904644,2777.5,2777.2,0.29234821]
[1645861038677,0.04904644,2777.5,2777.1,4.56984977]
[1645861038877,0.04904644,2777.5,2777.2,0.29237819]
[1645861039078,3.64904644,2777.5,2777.1,4.56984977]
[1645861039323,3.64904644,2777.5,2777.1,1.16949441]
[1645861040316,3.64904644,2777.5,2777.0,1.3474]
[1645861040517,3.64904644,2777.5,2777.1,0.29249274]
[1645861040717,3.64904644,2777.5,2777.0,1.2035]
[1645861040916,3.64904644,2777.5,2777.1,0.29250695]
[1645861043865,3.65537524,2777.5,2777.1,0.29250695]
[1645861045967,3.65537524,2777.5,2777.2,0.1439]
[1645861046169,3.65537524,2777.5,2777.3,0.29250695]
[1645861046369,3.65537524,2777.5,2777.3,0.81150695]
[1645861046569,3.65537524,2777.5,2777.4,0.29250695]
[1645861046817,3.65537524,2777.5,2777.4,0.81150695]
[1645861047417,0.00463658,2778.2,2777.6,0.3596]
[1645861047622,0.00463658,2778.2,2777.7,4.67110695]
[1645861047623,1.21324937,2778.1,2777.7,4.67110695]
[1645861047824,0.00395803,2778.4,2777.8,0.43640695]
[1645861048020,7.45,2778.6,2777.9,4.31150695]
[1645861048021,0.00463663,2778.2,2777.9,4.31150695]
[1645861048218,0.00463663,2778.2,2778.0,0.29250695]
[1645861048417,0.00463663,2778.2,2778.1,0.519]
[1645861048622,0.00463663,2778.2,2778.1,2.03512359]
[1645861048819,3.60463663,2778.2,2778.1,2.03512359]
[1645861049021,3.6,2778.2,2778.1,2.03512359]
[1645861049420,2.20016765,2778.2,2778.1,5.53512359]
[1645861050022,2.20016765,2778.2,2778.1,2.03512359]
[1645861050568,2.20016765,2778.2,2778.1,5.53512359]
[1645861050770,2.20016765,2778.2,2778.1,2.03512359]
[1645861050973,2.20016765,2778.2,2778.1,2.56247091]
[1645861053579,2.20016765,2778.2,2778.1,6.06247091]
[1645861053781,2.20016765,2778.2,2778.1,2.56247091]
[1645861056222,0.00395803,2778.5,2778.2,3.5]
[1645861056423,0.00463566,2778.3,2778.2,3.5]
[1645861056624,1.24819902,2778.3,2778.2,0.78663396]
[1645861056827,7.45,2778.6,2778.3,7.0]
[1645861057027,7.45,2778.6,2778.4,4.28663396]
[1645861057227,7.45,2778.6,2778.5,0.26763396]
[1645861057427,8.69326862,2778.6,2778.5,0.78663396]
[1645861057828,7.45,2778.6,2778.5,0.78663396]
[1645861059683,2.43811932,2779.3,2778.5,4.28663396]
[1645861059884,1.24251698,2779.2,2778.8,0.08997]
[1645861060188,1.24251698,2779.2,2778.9,0.7860685]
[1645861060385,1.24251698,2779.2,2779.0,1.27496406]
[1645861060587,1.24251698,2779.1,2779.0,1.79396406]
[1645861060784,2.0,2779.3,2779.0,1.79396406]
[1645861060983,1.24162522,2779.2,2779.0,1.79396406]
[1645861061184,1.24162522,2779.2,2779.1,3.76676804]
[1645861061185,0.0046364,2779.2,2779.1,3.76676804]
[1645861061383,0.00395803,2779.9,2779.2,18.2996]
[1645861061586,0.00395803,2779.9,2779.3,4.28576804]
[1645861061819,1.24215404,2780.0,2779.3,4.019]
[1645861062014,1.24215404,2779.9,2779.3,0.519]
[1645861062218,0.02249682,2780.2,2779.4,0.26660487]
[1645861062219,1.24215404,2779.8,2779.4,0.26660487]
[1645861062419,0.67881458,2780.4,2779.5,0.519]
[1645861062619,0.67881458,2780.4,2779.5,0.819]
[1645861062919,1.24215404,2780.3,2779.5,0.819]
[1645861064720,1.24215404,2780.3,2779.5,4.319]
[1645861064920,1.24215404,2780.3,2779.5,5.2184873]
[1645861065220,1.24215404,2780.3,2780.0,1.12083921]
[1645861065679,1.24215404,2780.2,2780.0,1.12083921]
[1645861065872,1.24215404,2780.5,2780.0,1.12083921]
[1645861066073,1.24215404,2780.4,2780.0,1.12083921]
[1645861066273,0.67485655,2780.7,2780.0,1.12083921]
[1645861066274,0.00494288,2780.3,2780.0,1.12083921]
[1645861066474,1.24215404,2780.2,2780.0,1.12083921]
[1645861066677,0.00494288,2780.3,2780.0,1.12083921]
[1645861066874,0.00395803,2780.9,2780.1,0.519]
[1645861067181,0.00494292,2780.2,2780.1,0.519]
[1645861068079,0.00395803,2781.1,2780.1,0.519]
[1645861068283,1.24278947,2781.1,2780.1,4.019]
[1645861068479,0.00494288,2780.3,2780.1,0.519]
[1645861068678,0.02720818,2780.2,2780.1,0.519]
[1645861071223,0.01759281,2780.2,2780.1,0.519]
[1645861073974,0.01759281,2780.2,2780.1,4.319]
[1645861074177,0.00395803,2781.1,2780.1,4.319]
[1645861074374,1.23609092,2781.1,2780.1,4.319]
[1645861074575,0.00461408,2780.3,2780.1,4.319]
[1645861074776,0.00461408,2780.3,2780.1,0.819]
[1645861075377,0.00395803,2781.1,2780.1,0.819]
[1645861075577,0.00241938,2780.3,2780.1,4.319]
[1645861075778,0.00241938,2780.3,2780.1,0.819]
[1645861076578,0.00395803,2781.1,2780.1,4.319]
[1645861076828,0.00395803,2781.1,2780.2,0.8992597]
[1645861076829,0.00241938,2780.3,2780.2,0.8992597]
[1645861077020,0.00241938,2780.3,2780.2,1.4182597]
[1645861077721,0.00395803,2781.1,2780.2,1.4182597]
[1645861077923,0.00241938,2780.4,2780.2,1.4182597]
[1645861078926,0.00395803,2781.1,2780.2,1.4182597]
[1645861079126,1.23510581,2781.1,2780.2,1.4182597]
[1645861079327,0.00478713,2780.4,2780.2,1.4182597]
[1645861079728,0.00478713,2780.4,2780.2,1.9678047]
[1645861080127,0.00395803,2781.1,2780.2,1.9678047]
[1645861080334,0.00478713,2780.4,2780.2,1.9678047]
[1645861080769,0.00478713,2780.4,2780.2,3.1392047]
[1645861081071,0.00478713,2780.4,2780.2,3.7392047]
[1645861081271,0.00395803,2781.2,2780.2,3.7392047]
[1645861081669,0.00478713,2780.4,2780.2,3.7392047]
[1645861082469,0.00395803,2781.2,2780.2,3.7392047]
[1645861082669,0.08819997,2781.3,2780.2,3.7392047]
[1645861082869,0.00462766,2780.4,2780.2,3.7392047]
[1645861083773,0.00395803,2781.2,2780.2,3.7392047]
[1645861083975,0.00462766,2780.4,2780.2,3.7392047]
[1645861085021,0.00395803,2781.2,2780.2,3.7392047]
[1645861085220,0.00462766,2780.4,2780.2,3.7392047]
[1645861086221,0.00395803,2781.2,2780.2,3.1392047]
[1645861086424,0.00464898,2780.4,2780.2,0.549545]
[1645861086623,0.00464898,2780.4,2779.8,0.25]
[1645861086825,0.00464898,2780.4,2779.4,1.183]
[1645861087424,5.1438,2780.6,2779.2,1.07162895]
[1645861087623,0.00464933,2780.0,2779.2,1.07162895]
[1645861088480,0.14785803,2780.1,2779.2,1.07162895]
[1645861088681,1.23416329,2780.0,2779.1,0.25]
[1645861088882,1.23416329,2780.0,2779.0,1.2101]
[1645861088883,0.00464958,2779.7,2779.0,1.2101]
[1645861089682,0.00395803,2779.9,2779.0,1.2101]
[1645861089883,0.00464838,2779.5,2779.0,1.2101]
[1645861090883,0.00395803,2779.9,2779.0,1.2101]
[1645861091283,0.00464846,2779.4,2779.0,1.2101]
[1645861092131,0.00395803,2779.9,2779.0,1.2101]
[1645861092336,0.00464851,2779.3,2779.0,1.2101]
[1645861092531,0.00300676,2779.3,2779.0,1.2101]
[1645861092932,0.00300676,2779.3,2779.1,0.26551871]
[1645861093338,0.00395803,2780.0,2779.0,1.2101]
[1645861093537,0.00395803,2780.0,2779.1,0.06371635]
[1645861093941,0.00395803,2780.0,2779.2,0.26548461]
[1645861093942,1.24201504,2780.0,2779.2,0.26548461]
[1645861094339,1.24201504,2780.0,2779.1,0.06371635]
[1645861097273,0.00494983,2779.7,2779.1,0.06371635]
[1645861097477,0.00494983,2779.7,2779.2,0.26592494]
[1645861098075,0.00395803,2780.3,2779.2,0.26592494]
[1645861098275,1.24414085,2780.3,2779.2,0.26592494]
[1645861098476,0.00494991,2779.6,2779.2,0.26592494]
[1645861099340,0.00395803,2780.3,2779.2,0.26592494]
[1645861099725,0.00494996,2779.5,2779.2,0.26592494]
[1645861100526,0.90369803,2780.3,2779.2,0.26592494]
[1645861100727,0.00495,2779.5,2779.2,0.26592494]
[1645861101731,0.00395803,2780.2,2779.2,0.26592494]
[1645861101933,0.00495,2779.5,2779.2,0.26592494]
[1645861102932,0.00395803,2780.2,2779.2,0.26592494]
[1645861103183,0.00495,2779.5,2779.2,0.26592494]
[1645861103582,0.00495,2779.5,2779.3,0.06344731]
[1645861103781,0.00495,2779.5,2779.4,0.26592494]
[1645861104182,0.00395803,2780.2,2779.4,0.26592494]
[1645861104382,0.00494991,2779.6,2779.4,0.26592494]
[1645861105385,2.72245458,2780.3,2779.4,0.26592494]
[1645861105585,0.00494987,2779.6,2779.4,0.26592494]
[1645861106586,0.00395803,2780.1,2779.4,0.26592494]
[1645861106837,0.00494987,2779.6,2779.4,0.26592494]
[1645861107727,0.00395803,2780.2,2779.4,0.26592494]
[1645861107928,0.00494987,2779.6,2779.4,0.26592494]
[1645861108933,0.00395803,2780.2,2779.4,0.26592494]
[1645861109132,0.00494987,2779.6,2779.4,0.26592494]
[1645861109737,0.00494987,2779.6,2779.5,0.519]
[1645861109932,0.00494987,2779.6,2779.5,1.78492494]
[1645861110134,0.00395803,2780.5,2779.5,1.78492494]
[1645861110333,1.24928811,2780.5,2779.8,1.0]
[1645861110581,0.01979567,2780.2,2779.9,1.68430084]
[1645861110784,0.01979567,2780.2,2780.0,1.4267022]
[1645861110983,0.01979567,2780.2,2780.1,0.26592494]
[1645861111381,0.00395803,2780.8,2780.1,0.26592494]
[1645861111580,0.67485655,2781.1,2780.1,0.26592494]
[1645861111581,1.92398867,2781.1,2780.1,0.26592494]
[1645861111784,0.00494931,2780.3,2780.1,0.26592494]
[1645861111986,1.24517409,2780.2,2780.1,0.26592494]
[1645861112390,0.00494931,2780.3,2780.1,0.26592494]
[1645861112588,1.24499519,2780.2,2780.1,0.26592494]
[1645861112791,0.00494931,2780.3,2780.1,0.26592494]
[1645861113389,0.00320208,2780.3,2780.1,0.26592494]
[1645861113888,1.24499272,2780.6,2780.1,0.26592494]
[1645861114092,1.24499272,2780.5,2780.2,0.519]
[1645861114331,1.24499272,2780.4,2780.3,0.26592494]
[1645861114525,1.9238073,2781.1,2780.3,0.26592494]
[1645861114931,0.67485655,2781.0,2780.3,0.26592494]
[1645861115125,1.24499272,2780.9,2780.4,0.26592494]
[1645861115325,1.24895075,2780.9,2780.4,0.26592494]
[1645861115524,0.67485655,2781.1,2780.0,1.67977726]
[1645861115525,1.24499272,2780.8,2780.0,1.67977726]
[1645861115733,1.24499272,2780.7,2780.1,0.26662527]
[1645861116132,1.24499272,2780.6,2780.1,0.26662527]
[1645861116330,1.24755786,2780.5,2780.1,0.26662527]
[1645861116530,1.24499272,2780.4,2780.1,0.26662527]
[1645861116733,1.24499272,2780.3,2780.1,0.26662527]
[1645861116931,0.00256514,2780.5,2780.1,0.26662527]
[1645861117335,0.00395803,2780.7,2780.1,0.26662527]
[1645861117538,0.00395803,2780.9,2780.2,0.519]
[1645861117735,0.00494919,2780.4,2780.3,0.26662527]
[1645861117935,1.24948678,2780.4,2780.3,0.26662527]
[1645861118377,0.00494919,2780.4,2780.3,0.26662527]
[1645861118579,0.00395803,2781.1,2780.3,0.26662527]
[1645861118778,0.00494914,2780.5,2780.3,0.26662527]
[1645861119681,0.0197936,2780.9,2780.3,0.26662527]
[1645861119881,1.25533604,2780.8,2780.3,0.26662527]
[1645861120085,5.03185655,2781.2,2780.3,0.26662527]
[1645861120086,0.0049491,2780.5,2780.3,0.26662527]
[1645861120283,0.0049491,2780.5,2780.3,0.80853916]
[1645861120482,0.0049491,2780.5,2780.4,0.26662527]
[1645861120682,1.26002527,2780.5,2780.4,0.26662527]
[1645861120882,1.25507617,2780.5,2780.4,0.26662527]
[1645861121283,0.00494906,2780.6,2780.4,0.26662527]
[1645861121482,1.25507617,2780.5,2780.3,0.54191389]
[1645861121683,1.25507617,2780.5,2780.4,0.25563137]
[1645861122334,0.00494906,2780.6,2780.4,0.25563137]
[1645861123436,0.00395803,2781.1,2780.4,0.25563137]
[1645861123636,0.00494901,2780.6,2780.4,0.25563137]
[1645861124639,0.00395803,2781.1,2780.4,0.25563137]
[1645861124839,0.00494901,2780.6,2780.4,0.25563137]
[1645861125875,3.21715803,2781.2,2780.4,0.25563137]
[1645861126075,0.00494901,2780.6,2780.4,0.25563137]
[1645861126776,0.00494901,2780.6,2780.4,0.77463137]
[1645861126977,3.21715803,2781.2,2780.5,0.25563137]
[1645861127179,1.25446682,2781.1,2780.6,0.519]
[1645861127378,1.27425991,2781.1,2780.6,0.519]
[1645861127779,1.25446682,2781.0,2780.6,0.519]
[1645861128182,1.25446682,2781.0,2780.7,0.25521044]
[1645861128379,1.25446682,2780.9,2780.7,0.25521044]
[1645861128580,1.25446682,2780.8,2780.4,1.6586]
[1645861128780,1.25446682,2780.8,2780.5,0.25507254]
[1645861129622,0.00494888,2780.8,2780.5,0.25507254]
[1645861130630,0.092158,2781.3,2780.5,3.75507254]
[1645861130631,0.00395803,2781.3,2780.5,3.75507254]
[1645861130825,0.00494888,2780.8,2780.6,1.13367254]
[1645861131022,0.00494888,2780.8,2780.7,4.11467254]
[1645861131228,4.888e-05,2780.8,2780.7,15.76736976]
[1645861131431,4.888e-05,2780.8,2780.7,22.95966976]
[1645861131624,4.888e-05,2780.8,2780.7,27.00969628]
[1645861131826,0.00395803,2782.0,2780.7,27.00969628]
[1645861132025,0.00395803,2782.0,2781.2,0.9888121]
[1645861132227,0.67485655,2782.2,2781.3,0.519]
[1645861132524,0.67881458,2782.2,2781.3,0.519]
[1645861132924,0.67881458,2782.2,2781.6,1.37127193]
[1645861133179,1.25918233,2782.1,2781.6,1.37127193]
[1645861133375,1.62071562,2781.4,2781.3,0.519]
[1645861134378,1.62071562,2781.4,2781.3,1.07098015]
[1645861135376,1.62071562,2781.4,2781.3,2.37947624]
[1645861136280,0.67881458,2782.3,2781.5,0.3596]
[1645861136479,1.22680261,2782.2,2781.7,0.3596]
[1645861136681,0.00395803,2782.5,2781.8,0.519]
[1645861136921,0.01024342,2781.9,2781.8,0.519]
[1645861137120,0.01024342,2781.9,2781.8,8.0682]
[1645861137520,4.342e-05,2781.9,2781.8,11.5682]
[1645861137722,1.21785913,2782.7,2781.9,0.3596]
[1645861137922,1.21785913,2782.7,2781.8,21.18969339]
[1645861137923,1.2139011,2782.7,2782.2,2.1565779]
[1645861138124,1.21785913,2782.7,2782.3,0.519]
[1645861138323,1.2139011,2782.7,2782.3,11.459]
[1645861138528,0.014,2783.2,2782.3,11.459]
[1645861138725,1.2030942,2783.1,2782.7,1.27073384]
[1645861138924,1.2030942,2783.1,2782.7,0.60885]
[1645861139927,1.2030942,2783.1,2782.7,0.519]
[1645861140124,1.2030942,2783.1,2782.6,0.1797]
[1645861141578,0.00494808,2783.0,2782.6,0.1797]
[1645861141778,1.2030942,2782.9,2782.6,0.1797]
[1645861141979,0.00494808,2783.0,2782.6,0.1797]
[1645861142178,1.20026191,2782.9,2782.6,0.1797]
[1645861142580,0.014,2783.2,2782.6,0.1797]
[1645861142780,0.00494816,2782.9,2782.6,0.1797]
[1645861143793,0.014,2783.2,2782.6,0.1797]
[1645861144085,0.014,2783.2,2782.7,1.519]
[1645861144086,0.00494816,2782.9,2782.7,1.519]
[1645861144524,0.00494816,2782.9,2782.8,7.187]
[1645861144725,0.00494816,2782.9,2782.8,11.506]
[1645861144925,0.014,2783.2,2782.8,22.446]
[1645861145126,0.01095803,2783.3,2782.9,18.8382738]
[1645861145325,0.01095803,2783.3,2783.0,0.819]
[1645861145326,0.007,2783.3,2783.0,0.819]
[1645861145726,0.007,2783.3,2783.1,0.17966]
[1645861145925,0.007,2783.3,2783.2,1.81255466]
[1645861146125,0.007,2783.3,2783.2,0.519]
[1645861146527,0.01194777,2783.3,2783.2,0.519]
[1645861147328,0.01194777,2783.3,2783.2,1.92394206]
[1645861147329,0.007,2783.3,2783.2,1.92394206]
[1645861147530,1.20574531,2783.3,2783.2,1.92394206]
[1645861147731,0.007,2783.3,2783.2,1.92394206]
[1645861148186,0.007,2783.3,2783.2,2.22394206]
[1645861148386,0.007,2783.3,2783.2,13.52354206]
[1645861148788,0.007,2783.3,2783.2,2.58354206]
[1645861149089,0.007,2783.3,2783.2,13.52354206]
[1645861149287,0.007,2783.7,2783.3,7.3596]
[1645861149489,0.1436,2784.7,2783.6,0.3596]
[1645861149687,1.48822177,2784.9,2783.6,0.3596]
[1645861149688,0.00395803,2784.4,2783.8,0.3596]
[1645861149888,1.20147518,2784.6,2783.9,11.8186]
[1645861149889,1.20147518,2784.5,2783.9,11.8186]
[1645861150090,1.20147518,2784.5,2784.0,0.519]
[1645861150288,0.5,2784.1,2784.0,11.459]
[1645861150486,0.00395803,2784.9,2784.0,11.459]
[1645861150685,1.20366844,2784.9,2784.0,11.459]
[1645861150886,1.20366844,2784.9,2784.1,10.94]
[1645861151088,1.20366844,2784.9,2784.2,0.6088]
[1645861151289,1.19971041,2784.9,2784.2,11.9084]
[1645861151491,19.55426499,2785.0,2784.6,11.2996]
[1645861151694,19.55426499,2785.0,2784.8,11.2996]
[1645861151944,19.55426499,2785.0,2784.9,11.8186]
[1645861152244,0.00395803,2785.6,2785.0,18.2996]
[1645861152439,0.00395803,2786.1,2785.2,10.94]
[1645861152646,1.19609626,2786.3,2785.1,0.8786]
[1645861152647,1.20005429,2786.3,2785.3,11.459]
[1645861152847,1.20005429,2786.3,2785.4,12.73286386]
[1645861153047,1.20005429,2786.3,2785.4,11.459]
[1645861153247,1.20005429,2786.3,2785.4,0.519]
[1645861153449,1.20005429,2786.3,2785.1,6.26095294]